[Event "*** Titled Tuesday 3|2 Blitz"]
[Site "Chess.com"]
[Date "2016.06.07"]
[Round "1"]
[White "Dlugy"]
[Black "aripov96"]
[Result "1-0"]
[WhiteElo "2595"]
[BlackElo "2266"]
[TimeControl "180+2"]
[EndTime "17:03:00 PDT"]
[Termination "Dlugy won by resignation"]

1. d4 {[%clk 0:03:01.9]} 1... d5 {[%clk 0:03:00.7]} 2. Bf4 {[%clk 0:03:02.7]}
2... c6 {[%clk 0:03:01.5]} 3. e3 {[%clk 0:03:03.7]} 3... Nf6 {[%clk 0:03:03]} 4.
Nf3 {[%clk 0:03:02.5]} 4... Bg4 {[%clk 0:03:04.3]} 5. c4 {[%clk 0:03:03.5]} 5...
e6 {[%clk 0:03:05.5]} 6. Qb3 {[%clk 0:03:04.2]} 6... Qb6 {[%clk 0:03:00.6]} 7.
Ne5 {[%clk 0:03:02]} 7... Nbd7 {[%clk 0:02:56.5]} 8. Nxg4 {[%clk 0:03:01.6]}
8... Nxg4 {[%clk 0:02:58.4]} 9. Nc3 {[%clk 0:03:00.4]} 9... Bb4 {[%clk
0:02:49.6]} 10. Be2 {[%clk 0:02:59.7]} 10... Ngf6 {[%clk 0:02:47.4]} 11. O-O
{[%clk 0:03:00.3]} 11... O-O {[%clk 0:02:47.7]} 12. c5 {[%clk 0:02:54.6]} 12...
Qa5 {[%clk 0:02:31.4]} 13. Nb1 {[%clk 0:02:50.4]} 13... e5 {[%clk 0:02:25.5]}
14. Bg3 {[%clk 0:02:41.8]} 14... exd4 {[%clk 0:02:17.4]} 15. exd4 {[%clk
0:02:42.6]} 15... b6 {[%clk 0:02:07.5]} 16. a3 {[%clk 0:02:41.6]} 16... Bd2
{[%clk 0:02:08.6]} 17. Qc2 {[%clk 0:02:33.2]} 17... Bh6 {[%clk 0:02:03.8]} 18.
b4 {[%clk 0:02:33.6]} 18... Qa4 {[%clk 0:01:53.8]} 19. Qxa4 {[%clk 0:02:33.7]}
1-0

[Event "*** Titled Tuesday 3|2 Blitz"]
[Site "Chess.com"]
[Date "2016.06.07"]
[Round "1"]
[White "michaelq2d5"]
[Black "twitchTriniCupid"]
[Result "1-0"]
[WhiteElo "2484"]
[BlackElo "2120"]
[TimeControl "180+2"]
[EndTime "17:03:29 PDT"]
[Termination "michaelq2d5 won by resignation"]

1. d4 {[%clk 0:03:01.5]} 1... Nf6 {[%clk 0:02:38]} 2. c4 {[%clk 0:03:01]} 2...
e6 {[%clk 0:02:38.9]} 3. Nc3 {[%clk 0:03:02.1]} 3... d5 {[%clk 0:02:40.4]} 4.
cxd5 {[%clk 0:03:02.8]} 4... Nxd5 {[%clk 0:02:40.8]} 5. e4 {[%clk 0:03:02.8]}
5... Nxc3 {[%clk 0:02:40.8]} 6. bxc3 {[%clk 0:03:04.7]} 6... g6 {[%clk
0:02:42.3]} 7. Nf3 {[%clk 0:03:06.1]} 7... Bg7 {[%clk 0:02:43.8]} 8. Be2 {[%clk
0:03:07.3]} 8... O-O {[%clk 0:02:45]} 9. O-O {[%clk 0:03:09]} 9... Nd7 {[%clk
0:02:46.3]} 10. Rb1 {[%clk 0:03:09.4]} 10... c5 {[%clk 0:02:46.6]} 11. Be3
{[%clk 0:03:10.1]} 11... Qa5 {[%clk 0:02:46.7]} 12. Qb3 {[%clk 0:03:08.6]} 12...
e5 {[%clk 0:02:39.9]} 13. d5 {[%clk 0:03:08.4]} 13... Qc7 {[%clk 0:02:36.6]} 14.
Nd2 {[%clk 0:03:07]} 14... a6 {[%clk 0:02:30.6]} 15. a4 {[%clk 0:03:07.3]} 15...
Rb8 {[%clk 0:02:29.4]} 16. Qa3 {[%clk 0:02:55.6]} 16... b6 {[%clk 0:02:25.1]}
17. Rb2 {[%clk 0:02:50.6]} 17... Bb7 {[%clk 0:02:24.7]} 18. Rfb1 {[%clk
0:02:50.2]} 18... Ba8 {[%clk 0:02:25.5]} 19. Bxa6 {[%clk 0:02:48.3]} 19... f5
{[%clk 0:02:26.5]} 20. f3 {[%clk 0:02:49]} 20... Nf6 {[%clk 0:02:24.9]} 21. Bc4
{[%clk 0:02:45.1]} 21... Qd6 {[%clk 0:02:24.4]} 22. a5 {[%clk 0:02:37.8]} 22...
f4 {[%clk 0:02:22.5]} 23. Bf2 {[%clk 0:02:34.4]} 23... bxa5 {[%clk 0:02:14.3]}
24. Bxc5 {[%clk 0:02:30]} 24... Qc7 {[%clk 0:02:07.5]} 25. d6+ {[%clk
0:02:20.2]} 1-0

[Event "*** Titled Tuesday 3|2 Blitz"]
[Site "Chess.com"]
[Date "2016.06.07"]
[Round "1"]
[White "BCNUM8"]
[Black "matej2221"]
[Result "0-1"]
[WhiteElo "2124"]
[BlackElo "2485"]
[TimeControl "180+2"]
[EndTime "17:04:13 PDT"]
[Termination "matej2221 won by resignation"]

1. d4 {[%clk 0:02:55.8]} 1... d5 {[%clk 0:03:00.3]} 2. Bg5 {[%clk 0:02:56.7]}
2... Nd7 {[%clk 0:03:00.6]} 3. Nf3 {[%clk 0:02:56]} 3... Ngf6 {[%clk 0:03:01.7]}
4. Nbd2 {[%clk 0:02:57.6]} 4... c6 {[%clk 0:03:01.9]} 5. e3 {[%clk 0:02:59.1]}
5... e6 {[%clk 0:03:01.8]} 6. Bd3 {[%clk 0:03:00.1]} 6... Be7 {[%clk 0:03:02.8]}
7. c3 {[%clk 0:03:00.7]} 7... b6 {[%clk 0:03:03.1]} 8. Ne5 {[%clk 0:03:01.5]}
8... Nxe5 {[%clk 0:03:02]} 9. dxe5 {[%clk 0:03:02.1]} 9... Nd7 {[%clk
0:03:03.6]} 10. Bf4 {[%clk 0:03:03.5]} 10... Qc7 {[%clk 0:02:53.6]} 11. Nf3
{[%clk 0:03:00.1]} 11... h6 {[%clk 0:02:54.1]} 12. h4 {[%clk 0:03:01.2]} 12...
Nc5 {[%clk 0:02:49.7]} 13. Bc2 {[%clk 0:03:01.7]} 13... Ba6 {[%clk 0:02:50.1]}
14. Nd4 {[%clk 0:02:50.6]} 14... O-O-O {[%clk 0:02:37.2]} 15. Nb3 {[%clk
0:02:31.5]} 15... g5 {[%clk 0:02:31.6]} 16. Nxc5 {[%clk 0:02:29.8]} 16... bxc5
{[%clk 0:02:28.5]} 17. Bg3 {[%clk 0:02:30.1]} 17... d4 {[%clk 0:02:26.3]} 18.
cxd4 {[%clk 0:02:14.5]} 18... cxd4 {[%clk 0:02:26.8]} 19. exd4 {[%clk
0:02:13.5]} 19... Bb4+ {[%clk 0:02:27.3]} 0-1

[Event "*** Titled Tuesday 3|2 Blitz"]
[Site "Chess.com"]
[Date "2016.06.07"]
[Round "1"]
[White "ChessNinja48"]
[Black "Noukii"]
[Result "0-1"]
[WhiteElo "2328"]
[BlackElo "2643"]
[TimeControl "180+2"]
[EndTime "17:04:30 PDT"]
[Termination "Noukii won by resignation"]

1. d4 {[%clk 0:03:00.8]} 1... d5 {[%clk 0:03:00.9]} 2. Nf3 {[%clk 0:03:01.7]}
2... Nf6 {[%clk 0:03:01.9]} 3. c4 {[%clk 0:03:03.1]} 3... c6 {[%clk 0:03:03.5]}
4. Nc3 {[%clk 0:03:04.6]} 4... dxc4 {[%clk 0:03:03.8]} 5. a4 {[%clk 0:03:05.5]}
5... Bg4 {[%clk 0:03:04.9]} 6. Ne5 {[%clk 0:03:05]} 6... Bh5 {[%clk 0:03:06.3]}
7. Nxc4 {[%clk 0:03:04.2]} 7... e6 {[%clk 0:03:07.8]} 8. Qb3 {[%clk 0:03:05.1]}
8... Na6 {[%clk 0:03:08.3]} 9. e3 {[%clk 0:02:47.6]} 9... Nb4 {[%clk 0:03:09]}
10. Be2 {[%clk 0:02:20.9]} 10... Bg6 {[%clk 0:03:09]} 11. O-O {[%clk 0:02:22.1]}
11... Bc2 {[%clk 0:03:09]} 12. Qa3 {[%clk 0:02:19.4]} 12... Bf5 {[%clk
0:03:02.1]} 13. Qb3 {[%clk 0:02:17]} 13... a5 {[%clk 0:02:58.7]} 14. Bd2 {[%clk
0:02:12.7]} 14... Be7 {[%clk 0:02:57.5]} 15. Na3 {[%clk 0:02:06.6]} 15... O-O
{[%clk 0:02:55.8]} 16. Rad1 {[%clk 0:02:07.5]} 16... Bd6 {[%clk 0:02:38.9]} 17.
h3 {[%clk 0:01:54.2]} 17... Qe7 {[%clk 0:02:38.6]} 18. Bf3 {[%clk 0:01:51.6]}
18... e5 {[%clk 0:02:38.4]} 19. dxe5 {[%clk 0:01:51.7]} 19... Qxe5 {[%clk
0:02:38.7]} 20. g3 {[%clk 0:01:47.5]} 20... Bxh3 {[%clk 0:02:35]} 21. Rfe1
{[%clk 0:01:45.3]} 21... Be6 {[%clk 0:02:29.9]} 22. Nc4 {[%clk 0:01:22]} 22...
Qc5 {[%clk 0:02:28.3]} 23. Be2 {[%clk 0:01:23.1]} 23... b5 {[%clk 0:02:29.5]}
24. axb5 {[%clk 0:01:24.2]} 24... cxb5 {[%clk 0:02:31]} 25. Nxb5 {[%clk
0:01:18.2]} 25... Qxb5 {[%clk 0:02:32.2]} 26. Nxd6 {[%clk 0:01:19.5]} 26... Qxe2
{[%clk 0:02:33.3]} 0-1

[Event "*** Titled Tuesday 3|2 Blitz"]
[Site "Chess.com"]
[Date "2016.06.07"]
[Round "1"]
[White "Viaje"]
[Black "aspired"]
[Result "0-1"]
[WhiteElo "2147"]
[BlackElo "2496"]
[TimeControl "180+2"]
[EndTime "17:05:03 PDT"]
[Termination "aspired won by resignation"]

1. d4 {[%clk 0:03:01.3]} 1... d5 {[%clk 0:02:58]} 2. c4 {[%clk 0:03:02.7]} 2...
dxc4 {[%clk 0:02:58.8]} 3. Nf3 {[%clk 0:03:02.7]} 3... Nf6 {[%clk 0:02:59.5]} 4.
e3 {[%clk 0:03:04.2]} 4... e6 {[%clk 0:03:01.4]} 5. Bxc4 {[%clk 0:03:05.6]} 5...
a6 {[%clk 0:03:02.7]} 6. O-O {[%clk 0:03:06.7]} 6... c5 {[%clk 0:03:02.9]} 7.
dxc5 {[%clk 0:03:08.6]} 7... Bxc5 {[%clk 0:03:04.3]} 8. Qxd8+ {[%clk 0:03:08.6]}
8... Kxd8 {[%clk 0:03:06.2]} 9. Nbd2 {[%clk 0:03:08.8]} 9... Ke7 {[%clk
0:03:05.5]} 10. Nb3 {[%clk 0:03:09.5]} 10... Ba7 {[%clk 0:03:01.6]} 11. Be2
{[%clk 0:03:10.6]} 11... Rd8 {[%clk 0:03:01.8]} 12. e4 {[%clk 0:03:09.4]} 12...
Nxe4 {[%clk 0:03:00.6]} 13. Bf4 {[%clk 0:03:06.5]} 13... Nc6 {[%clk 0:02:59.5]}
14. Rac1 {[%clk 0:03:04.6]} 14... f6 {[%clk 0:03:00]} 15. Nfd2 {[%clk
0:02:57.5]} 15... Nxd2 {[%clk 0:02:58.4]} 16. Bxd2 {[%clk 0:02:59.4]} 16... e5
{[%clk 0:02:57.4]} 17. Bf3 {[%clk 0:02:59.9]} 17... Bd7 {[%clk 0:02:55.9]} 18.
Na5 {[%clk 0:02:54.6]} 18... Rab8 {[%clk 0:02:46.3]} 19. a3 {[%clk 0:02:37.6]}
19... Rdc8 {[%clk 0:02:41.5]} 20. Nc4 {[%clk 0:02:23.3]} 20... b5 {[%clk
0:02:37.7]} 21. Bxc6 {[%clk 0:02:22.9]} 21... Bxc6 {[%clk 0:02:37.2]} 22. Bb4+
{[%clk 0:02:23]} 22... Ke6 {[%clk 0:02:36.6]} 23. Nd6 {[%clk 0:02:17.7]} 23...
Rc7 {[%clk 0:02:37.2]} 24. Kh1 {[%clk 0:02:14.6]} 24... Bb6 {[%clk 0:02:35.7]}
25. f4 {[%clk 0:02:15]} 25... a5 {[%clk 0:02:33.8]} 26. f5+ {[%clk 0:02:16.1]}
26... Kd7 {[%clk 0:02:34.9]} 27. Rfd1 {[%clk 0:02:11.7]} 27... Bxg2+ {[%clk
0:02:30.9]} 28. Kxg2 {[%clk 0:02:11.4]} 28... Rxc1 {[%clk 0:02:32.8]} 29. Rxc1
{[%clk 0:02:03.8]} 29... axb4 {[%clk 0:02:33.9]} 30. Nxb5 {[%clk 0:02:05]} 30...
bxa3 {[%clk 0:02:35]} 31. Nxa3 {[%clk 0:02:05.6]} 31... Bd4 {[%clk 0:02:34.9]}
32. Nc4 {[%clk 0:01:54.4]} 32... Rb3 {[%clk 0:02:34.8]} 33. Rc2 {[%clk
0:01:53.7]} 33... h5 {[%clk 0:02:33.8]} 34. Rd2 {[%clk 0:01:47.2]} 34... h4
{[%clk 0:02:32.3]} 35. Kf1 {[%clk 0:01:47.3]} 35... h3 {[%clk 0:02:30.3]} 36.
Ke2 {[%clk 0:01:46.5]} 36... Kc6 {[%clk 0:02:31.4]} 37. Rd3 {[%clk 0:01:46.1]}
37... Rxd3 {[%clk 0:02:30]} 38. Kxd3 {[%clk 0:01:48]} 38... Kd5 {[%clk
0:02:31.3]} 39. Nd2 {[%clk 0:01:45.4]} 39... Bg1 {[%clk 0:02:29.8]} 0-1

[Event "*** Titled Tuesday 3|2 Blitz"]
[Site "Chess.com"]
[Date "2016.06.07"]
[Round "1"]
[White "WanderingPuppet"]
[Black "severomorskij"]
[Result "0-1"]
[WhiteElo "2280"]
[BlackElo "2609"]
[TimeControl "180+2"]
[EndTime "17:05:13 PDT"]
[Termination "severomorskij won by resignation"]

1. e4 {[%clk 0:03:01.9]} 1... c5 {[%clk 0:02:59.2]} 2. Nf3 {[%clk 0:03:02.9]}
2... Nc6 {[%clk 0:02:59.5]} 3. d4 {[%clk 0:03:04.4]} 3... cxd4 {[%clk
0:03:00.3]} 4. Nxd4 {[%clk 0:03:06.3]} 4... Nf6 {[%clk 0:03:01.6]} 5. Nc3 {[%clk
0:03:07.5]} 5... e5 {[%clk 0:03:02.7]} 6. Ndb5 {[%clk 0:03:07.8]} 6... d6 {[%clk
0:03:03.5]} 7. Bg5 {[%clk 0:03:07]} 7... a6 {[%clk 0:03:04.1]} 8. Na3 {[%clk
0:03:08.2]} 8... b5 {[%clk 0:03:04.8]} 9. Nd5 {[%clk 0:03:09.8]} 9... Be7 {[%clk
0:03:05.9]} 10. Bxf6 {[%clk 0:03:11.4]} 10... Bxf6 {[%clk 0:03:07.5]} 11. c3
{[%clk 0:03:13]} 11... O-O {[%clk 0:03:00.8]} 12. Nc2 {[%clk 0:03:14.5]} 12...
Bg5 {[%clk 0:03:00.1]} 13. h4 {[%clk 0:03:16.2]} 13... Bh6 {[%clk 0:03:00.5]}
14. g4 {[%clk 0:03:17.7]} 14... Bf4 {[%clk 0:03:00.3]} 15. Qf3 {[%clk
0:03:19.3]} 15... Be6 {[%clk 0:02:40.4]} 16. Nxf4 {[%clk 0:03:19.7]} 16... exf4
{[%clk 0:02:41.5]} 17. Qxf4 {[%clk 0:03:17.5]} 17... b4 {[%clk 0:02:39.2]} 18.
Nxb4 {[%clk 0:03:10.2]} 18... Nxb4 {[%clk 0:02:39]} 19. cxb4 {[%clk 0:03:12.1]}
19... Qb6 {[%clk 0:02:34.3]} 20. a3 {[%clk 0:03:07.7]} 20... d5 {[%clk
0:02:31.1]} 21. O-O-O {[%clk 0:02:31.5]} 21... Rfc8+ {[%clk 0:02:21.6]} 22. Kb1
{[%clk 0:02:28.7]} 22... d4 {[%clk 0:01:54.5]} 23. f3 {[%clk 0:02:07.9]} 23...
Qc6 {[%clk 0:01:36.9]} 24. Bd3 {[%clk 0:02:03.7]} 24... Qa4 {[%clk 0:01:37]} 25.
Rc1 {[%clk 0:01:39.4]} 25... Qb3 {[%clk 0:01:35.1]} 26. Rxc8+ {[%clk 0:01:28.5]}
26... Rxc8 {[%clk 0:01:34.9]} 0-1

[Event "*** Titled Tuesday 3|2 Blitz"]
[Site "Chess.com"]
[Date "2016.06.07"]
[Round "1"]
[White "cheese111"]
[Black "Yaacovn"]
[Result "0-1"]
[WhiteElo "2291"]
[BlackElo "2613"]
[TimeControl "180+2"]
[EndTime "17:05:42 PDT"]
[Termination "Yaacovn won by resignation"]

1. e4 {[%clk 0:02:19.8]} 1... c6 {[%clk 0:03:01.2]} 2. d4 {[%clk 0:02:18.2]}
2... d5 {[%clk 0:03:03.1]} 3. Nd2 {[%clk 0:02:19.2]} 3... dxe4 {[%clk
0:03:04.4]} 4. Nxe4 {[%clk 0:02:21.1]} 4... Nf6 {[%clk 0:03:06.3]} 5. Nxf6+
{[%clk 0:02:21.6]} 5... gxf6 {[%clk 0:03:08.2]} 6. Nf3 {[%clk 0:02:21.8]} 6...
Bg4 {[%clk 0:03:09]} 7. g3 {[%clk 0:02:22.8]} 7... Bxf3 {[%clk 0:02:58]} 8. Qxf3
{[%clk 0:02:22.4]} 8... Qxd4 {[%clk 0:02:59.2]} 9. c3 {[%clk 0:02:15.5]} 9...
Qd5 {[%clk 0:03:00.3]} 10. Qxd5 {[%clk 0:02:12.6]} 10... cxd5 {[%clk 0:03:02.2]}
11. Bg2 {[%clk 0:02:12.3]} 11... e6 {[%clk 0:03:02.9]} 12. c4 {[%clk 0:02:13.4]}
12... Nc6 {[%clk 0:03:02.7]} 13. cxd5 {[%clk 0:02:13.1]} 13... Nb4 {[%clk
0:03:03.9]} 14. O-O {[%clk 0:01:53.5]} 14... Nxd5 {[%clk 0:03:04.3]} 15. Bxd5
{[%clk 0:01:48.3]} 15... exd5 {[%clk 0:03:06.2]} 16. Rd1 {[%clk 0:01:37.9]}
16... O-O-O {[%clk 0:03:06.4]} 17. Be3 {[%clk 0:01:37.1]} 17... b6 {[%clk
0:03:05.6]} 18. Bf4 {[%clk 0:01:26.4]} 18... Bd6 {[%clk 0:03:04]} 19. Rac1+
{[%clk 0:00:53.5]} 19... Kb7 {[%clk 0:03:04.4]} 20. Rxd5 {[%clk 0:00:38.7]}
20... Bxf4 {[%clk 0:03:03.1]} 21. Rxd8 {[%clk 0:00:39.5]} 21... Rxd8 {[%clk
0:03:05]} 22. gxf4 {[%clk 0:00:40.5]} 22... Rd2 {[%clk 0:03:06.1]} 23. Re1
{[%clk 0:00:25]} 23... Rxb2 {[%clk 0:03:06.9]} 24. Re7+ {[%clk 0:00:25.9]} 24...
Ka6 {[%clk 0:03:07.6]} 25. Rxf7 {[%clk 0:00:27]} 25... Rxa2 {[%clk 0:03:08.5]}
26. Rxh7 {[%clk 0:00:15.1]} 26... b5 {[%clk 0:03:03.4]} 27. h4 {[%clk
0:00:12.9]} 27... b4 {[%clk 0:03:04.3]} 28. Rh8 {[%clk 0:00:12.6]} 28... Kb7
{[%clk 0:03:01.2]} 29. Rh7+ {[%clk 0:00:12.5]} 29... Kc6 {[%clk 0:03:00.7]} 30.
Rh8 {[%clk 0:00:12.6]} 30... Ra5 {[%clk 0:02:52.4]} 31. h5 {[%clk 0:00:11.1]}
31... b3 {[%clk 0:02:51.3]} 32. Rb8 {[%clk 0:00:09.3]} 32... Rb5 {[%clk
0:02:51.2]} 33. Rc8+ {[%clk 0:00:09.4]} 33... Kd7 {[%clk 0:02:51.4]} 34. Rc1
{[%clk 0:00:03.4]} 34... Rxh5 {[%clk 0:02:50.3]} 0-1

[Event "*** Titled Tuesday 3|2 Blitz"]
[Site "Chess.com"]
[Date "2016.06.07"]
[Round "1"]
[White "BikingBrian"]
[Black "attack2mateU"]
[Result "1/2-1/2"]
[WhiteElo "2110"]
[BlackElo "2458"]
[TimeControl "180+2"]
[EndTime "17:05:42 PDT"]
[Termination "Game drawn by repetition"]

1. d4 {[%clk 0:03:01.3]} 1... Nf6 {[%clk 0:02:53.3]} 2. c4 {[%clk 0:02:58.5]}
2... e6 {[%clk 0:02:54.5]} 3. Nc3 {[%clk 0:02:59.3]} 3... Bb4 {[%clk 0:02:54.2]}
4. e3 {[%clk 0:03:00.7]} 4... O-O {[%clk 0:02:54.9]} 5. a3 {[%clk 0:03:02]} 5...
Bxc3+ {[%clk 0:02:54.8]} 6. bxc3 {[%clk 0:03:03.9]} 6... d5 {[%clk 0:02:48.5]}
7. cxd5 {[%clk 0:03:04]} 7... exd5 {[%clk 0:02:49]} 8. Bd3 {[%clk 0:03:05.2]}
8... c5 {[%clk 0:02:49.4]} 9. Ne2 {[%clk 0:03:06.5]} 9... b6 {[%clk 0:02:50.4]}
10. O-O {[%clk 0:03:07.5]} 10... Ba6 {[%clk 0:02:51.6]} 11. Ng3 {[%clk
0:03:07.5]} 11... Bxd3 {[%clk 0:02:48.7]} 12. Qxd3 {[%clk 0:03:09.4]} 12... Nc6
{[%clk 0:02:49.5]} 13. Bb2 {[%clk 0:03:03.8]} 13... Re8 {[%clk 0:02:43.3]} 14.
f3 {[%clk 0:03:05.2]} 14... h5 {[%clk 0:02:43.3]} 15. Rae1 {[%clk 0:03:04.1]}
15... Qd7 {[%clk 0:02:20]} 16. e4 {[%clk 0:02:53.4]} 16... h4 {[%clk 0:02:20.4]}
17. Nf5 {[%clk 0:02:49.7]} 17... h3 {[%clk 0:02:18.1]} 18. e5 {[%clk 0:02:48.4]}
18... hxg2 {[%clk 0:02:05.1]} 19. Kxg2 {[%clk 0:02:50.3]} 19... Nh5 {[%clk
0:02:05.8]} 20. f4 {[%clk 0:02:49.1]} 20... g6 {[%clk 0:01:57]} 21. Ng3 {[%clk
0:02:39.7]} 21... Nxg3 {[%clk 0:01:52.3]} 22. hxg3 {[%clk 0:02:38.4]} 22... Qf5
{[%clk 0:01:54]} 23. Qxf5 {[%clk 0:02:37.9]} 23... gxf5 {[%clk 0:01:55.1]} 24.
Rh1 {[%clk 0:02:37.3]} 24... cxd4 {[%clk 0:01:48.4]} 25. cxd4 {[%clk 0:02:39.2]}
25... Rac8 {[%clk 0:01:49.3]} 26. Rh5 {[%clk 0:02:39.3]} 26... Na5 {[%clk
0:01:47]} 27. Bc1 {[%clk 0:02:19.1]} 27... Rc2+ {[%clk 0:01:47.6]} 28. Kf3
{[%clk 0:02:18.3]} 28... Rec8 {[%clk 0:01:46]} 29. Be3 {[%clk 0:02:16.9]} 29...
R8c3 {[%clk 0:01:46.4]} 30. Reh1 {[%clk 0:02:16.7]} 30... Kf8 {[%clk 0:01:46.8]}
31. Rxf5 {[%clk 0:02:14.7]} 31... Nc4 {[%clk 0:01:46.8]} 32. Rh7 {[%clk
0:02:15.2]} 32... Rxe3+ {[%clk 0:01:47.1]} 33. Kg4 {[%clk 0:02:16]} 33... Ke8
{[%clk 0:01:29.7]} 34. Rfxf7 {[%clk 0:02:16.4]} 34... Rg2 {[%clk 0:01:18.1]} 35.
Re7+ {[%clk 0:01:41.8]} 35... Kf8 {[%clk 0:01:19]} 36. Ref7+ {[%clk 0:01:42.2]}
36... Ke8 {[%clk 0:01:20]} 37. Re7+ {[%clk 0:01:43.5]} 37... Kf8 {[%clk
0:01:21.2]} 38. Ref7+ {[%clk 0:01:45]} 38... Ke8 {[%clk 0:01:21.4]} 39. Re7+
{[%clk 0:01:46.3]} 1/2-1/2

[Event "*** Titled Tuesday 3|2 Blitz"]
[Site "Chess.com"]
[Date "2016.06.07"]
[Round "1"]
[White "andretta"]
[Black "Mornar1951"]
[Result "0-1"]
[WhiteElo "2158"]
[BlackElo "2507"]
[TimeControl "180+2"]
[EndTime "17:06:41 PDT"]
[Termination "Mornar1951 won by resignation"]

1. Nf3 {[%clk 0:03:00.1]} 1... Nf6 {[%clk 0:03:00.1]} 2. c4 {[%clk 0:03:01.6]}
2... e6 {[%clk 0:03:00.9]} 3. g3 {[%clk 0:03:02.7]} 3... d5 {[%clk 0:03:02.2]}
4. Bg2 {[%clk 0:03:03.3]} 4... dxc4 {[%clk 0:03:03.2]} 5. Qa4+ {[%clk
0:03:03.8]} 5... Bd7 {[%clk 0:03:04.4]} 6. Qxc4 {[%clk 0:03:05.1]} 6... c5
{[%clk 0:03:05.5]} 7. O-O {[%clk 0:03:05.7]} 7... Bc6 {[%clk 0:03:05.9]} 8. d3
{[%clk 0:03:03.8]} 8... Nbd7 {[%clk 0:03:05.4]} 9. Qc2 {[%clk 0:02:59.9]} 9...
Rc8 {[%clk 0:02:58.5]} 10. Nc3 {[%clk 0:02:50.9]} 10... Be7 {[%clk 0:02:53.3]}
11. e4 {[%clk 0:02:47.6]} 11... O-O {[%clk 0:02:53.5]} 12. d4 {[%clk 0:02:43.6]}
12... b5 {[%clk 0:02:42.8]} 13. dxc5 {[%clk 0:02:04.9]} 13... b4 {[%clk
0:02:38.7]} 14. e5 {[%clk 0:01:56.5]} 14... Bxf3 {[%clk 0:02:22.1]} 15. exf6
{[%clk 0:01:43.5]} 15... Bxg2 {[%clk 0:02:22.9]} 16. fxe7 {[%clk 0:01:42.3]}
16... Qxe7 {[%clk 0:02:23.1]} 17. Kxg2 {[%clk 0:01:41.6]} 17... bxc3 {[%clk
0:02:24.2]} 18. b4 {[%clk 0:01:41]} 18... Qf6 {[%clk 0:02:10.5]} 19. Be3 {[%clk
0:01:29.2]} 19... Ne5 {[%clk 0:02:03.6]} 20. Qxc3 {[%clk 0:01:07.3]} 20... Qf3+
{[%clk 0:02:04.2]} 21. Kg1 {[%clk 0:01:08.4]} 21... Qe4 {[%clk 0:02:02]} 22. f3
{[%clk 0:01:04.5]} 22... Nxf3+ {[%clk 0:02:02.6]} 23. Rxf3 {[%clk 0:00:44.6]}
23... Qxf3 {[%clk 0:02:04.5]} 24. a4 {[%clk 0:00:46]} 24... Rfd8 {[%clk
0:02:03.5]} 25. b5 {[%clk 0:00:45]} 25... Rd1+ {[%clk 0:01:58]} 26. Rxd1 {[%clk
0:00:43.9]} 26... Qxd1+ {[%clk 0:01:59.9]} 27. Kg2 {[%clk 0:00:45.8]} 27... Qxa4
{[%clk 0:02:01]} 28. Qb2 {[%clk 0:00:22.8]} 28... Qe4+ {[%clk 0:01:46.4]} 29.
Kf2 {[%clk 0:00:21.5]} 29... Rxc5 {[%clk 0:01:40.1]} 30. Bxc5 {[%clk 0:00:20.1]}
30... Qf5+ {[%clk 0:01:40.9]} 31. Kg2 {[%clk 0:00:20.5]} 31... Qxc5 {[%clk
0:01:41.9]} 32. Qa2 {[%clk 0:00:22.1]} 32... Qd5+ {[%clk 0:01:33.6]} 0-1

[Event "*** Titled Tuesday 3|2 Blitz"]
[Site "Chess.com"]
[Date "2016.06.07"]
[Round "1"]
[White "Iball95"]
[Black "djgwards"]
[Result "1-0"]
[WhiteElo "2462"]
[BlackElo "2076"]
[TimeControl "180+2"]
[EndTime "17:06:51 PDT"]
[Termination "Iball95 won by resignation"]

1. e4 {[%clk 0:02:37.3]} 1... e5 {[%clk 0:02:59]} 2. Nf3 {[%clk 0:02:38.5]} 2...
Nc6 {[%clk 0:02:59.8]} 3. Nc3 {[%clk 0:02:40]} 3... Nf6 {[%clk 0:02:59.4]} 4.
Bb5 {[%clk 0:02:41.5]} 4... Bd6 {[%clk 0:03:00.4]} 5. O-O {[%clk 0:02:41.8]}
5... O-O {[%clk 0:03:01]} 6. d3 {[%clk 0:02:43.3]} 6... Re8 {[%clk 0:03:01.4]}
7. a3 {[%clk 0:02:44.7]} 7... a6 {[%clk 0:03:01.8]} 8. Bc4 {[%clk 0:02:45.9]}
8... h6 {[%clk 0:03:01.5]} 9. Nh4 {[%clk 0:02:43.9]} 9... Ne7 {[%clk 0:02:51.6]}
10. Qf3 {[%clk 0:02:41.7]} 10... Bc5 {[%clk 0:02:25.4]} 11. Bxh6 {[%clk
0:02:34.1]} 11... d5 {[%clk 0:02:17.5]} 12. exd5 {[%clk 0:02:13.9]} 12... Bg4
{[%clk 0:02:18.2]} 13. Qg3 {[%clk 0:02:13.6]} 13... gxh6 {[%clk 0:02:08.3]} 14.
h3 {[%clk 0:02:07.2]} 14... Qd7 {[%clk 0:01:50.8]} 15. hxg4 {[%clk 0:02:02.4]}
15... Qxg4 {[%clk 0:01:51.2]} 16. Qxg4+ {[%clk 0:01:32.2]} 16... Nxg4 {[%clk
0:01:53.1]} 17. Ne4 {[%clk 0:01:32.1]} 17... Ba7 {[%clk 0:01:52.9]} 18. d6
{[%clk 0:01:32]} 18... cxd6 {[%clk 0:01:44.6]} 19. Nxd6 {[%clk 0:01:33.9]} 19...
Rf8 {[%clk 0:01:45.7]} 20. Rae1 {[%clk 0:01:30.2]} 20... b5 {[%clk 0:01:44.1]}
21. Bb3 {[%clk 0:01:30.9]} 21... Rad8 {[%clk 0:01:45.2]} 22. Ndf5 {[%clk
0:01:28.1]} 22... Nxf5 {[%clk 0:01:39.2]} 23. Nxf5 {[%clk 0:01:30]} 23... Kh7
{[%clk 0:01:40.7]} 24. Re4 {[%clk 0:01:27.6]} 24... h5 {[%clk 0:01:42]} 25. g3
{[%clk 0:01:24.1]} 25... Kg6 {[%clk 0:01:42.9]} 26. Ne7+ {[%clk 0:01:19.3]}
26... Kg7 {[%clk 0:01:32.1]} 27. Nc6 {[%clk 0:01:17.3]} 27... Rd7 {[%clk
0:01:25.9]} 28. Nxe5 {[%clk 0:01:15.5]} 28... Nxe5 {[%clk 0:01:21.6]} 29. Rxe5
{[%clk 0:01:17.4]} 29... Bd4 {[%clk 0:01:21.9]} 30. Rxh5 {[%clk 0:01:16.7]}
30... Bxb2 {[%clk 0:01:23.1]} 31. a4 {[%clk 0:01:18]} 31... b4 {[%clk
0:01:20.4]} 32. Re1 {[%clk 0:01:16.9]} 32... Rd6 {[%clk 0:01:19.3]} 33. Kg2
{[%clk 0:01:17.1]} 33... Rf6 {[%clk 0:01:17.6]} 34. Rg5+ {[%clk 0:01:14.8]}
34... Rg6 {[%clk 0:01:18.4]} 35. Rxg6+ {[%clk 0:01:15.3]} 35... Kxg6 {[%clk
0:01:06.4]} 36. Re7 {[%clk 0:01:16.2]} 36... Bd4 {[%clk 0:00:59.7]} 37. Rd7
{[%clk 0:01:15.3]} 37... Be5 {[%clk 0:00:56.4]} 38. Ra7 {[%clk 0:01:14.6]} 38...
Re8 {[%clk 0:00:52.5]} 39. Rxa6+ {[%clk 0:01:15.4]} 39... Kg7 {[%clk 0:00:53.7]}
40. Ra7 {[%clk 0:01:16]} 1-0